bitfinex/quotes_SOLUSD_20260211
["timestamp","ask_amount","ask_price","bid_price","bid_amount"]
[1770820640787,0.2,81.53,81.491,12.27128421]
[1770820640788,0.2,81.53,81.511,4.47877224]
[1770820640987,12.26557421,81.529,81.492,4.47877224]
[1770820641170,19.32875891,81.52,81.48,19.32875891]
[1770820641481,19.52875891,81.53,81.491,4.47877224]
[1770820641683,0.2,81.53,81.52,19.32875891]
[1770820641883,0.2,81.53,81.511,4.47877224]
[1770820642197,0.04203096,81.569,81.511,4.47877224]
[1770820642412,19.32875891,81.57,81.517,4.37877224]
[1770820642696,19.32875891,81.55,81.517,4.37877224]
[1770820643006,0.24003096,81.572,81.517,4.37877224]
[1770820643211,0.24003096,81.572,81.512,12.26809602]
[1770820643212,19.32875891,81.54,81.501,4.37877224]
[1770820643397,19.32875891,81.54,81.45,49.10979753]
[1770820643398,19.32875891,81.52,81.491,4.37877224]
[1770820643604,19.32875891,81.54,81.501,4.37877224]
[1770820643801,19.32875891,81.56,81.521,4.37877224]
[1770820644305,19.32875891,81.57,81.541,4.37877224]
[1770820644479,42.89741389,81.59,81.512,4.37877224]
[1770820644480,19.32875891,81.55,81.512,4.37877224]
[1770820644678,42.90845786,81.569,81.53,23.70753115]
[1770820644901,42.90845786,81.569,81.494,42.8]
[1770820644902,19.32875891,81.55,81.516,4.37877224]
[1770820645082,19.32875891,81.55,81.505,30.6726061]
[1770820645083,19.32875891,81.56,81.525,4.37877224]
[1770820645482,19.32875891,81.55,81.525,4.37877224]
[1770820645681,19.32875891,81.56,81.525,4.37877224]
[1770820645898,12.25955939,81.569,81.541,4.37877224]
[1770820646296,12.25955939,81.569,81.531,4.37877224]
[1770820646586,12.25955939,81.569,81.533,12.2648946]
[1770820646786,12.2580566,81.579,81.541,4.37877224]
[1770820646981,51.32,81.602,81.551,4.37877224]
[1770820647202,51.32,81.602,81.533,12.2648946]
[1770820647203,19.32875891,81.61,81.571,4.37877224]
[1770820647708,19.32875891,81.61,81.581,4.37877224]
[1770820647893,19.32875891,81.62,81.581,4.37877224]
[1770820648090,42.87691874,81.629,81.591,4.37877224]
[1770820648294,19.32875891,81.62,81.591,4.37877224]
[1770820648494,42.88217203,81.619,81.591,4.37877224]
[1770820648784,19.32875891,81.61,81.575,4.37877224]
[1770820649600,19.32875891,81.59,81.551,4.37877224]
[1770820650306,0.24003096,81.618,81.571,4.37877224]
[1770820650506,19.32875891,81.61,81.572,4.37877224]
[1770820650805,19.32875891,81.62,81.581,4.37877224]
[1770820651385,0.24003096,81.634,81.571,42.90737747]
[1770820651386,19.32875891,81.63,81.591,4.37877224]
[1770820651706,19.32875891,81.62,81.591,4.37877224]
[1770820651883,0.24003096,81.647,81.591,4.37877224]
[1770820652086,19.32875891,81.63,81.591,4.37877224]
[1770820652596,12.25054821,81.629,81.591,4.37877224]
[1770820652805,19.32875891,81.62,81.591,4.37877224]
[1770820652990,19.30191106,81.6,81.56,23.6806833]
[1770820653186,19.30191106,81.6,81.573,4.37877224]
[1770820653390,19.30191106,81.61,81.573,4.37877224]
[1770820653690,19.30191106,81.61,81.558,30.65302438]
[1770820653691,12.24904763,81.639,81.601,4.37877224]
[1770820654295,19.30191106,81.66,81.621,4.37877224]
[1770820654534,19.30191106,81.66,81.623,4.37877224]
[1770820654711,19.30191106,81.68,81.631,4.37877224]
[1770820655011,19.30191106,81.67,81.631,4.37877224]
[1770820655396,12.24170012,81.688,81.66,19.30191106]
[1770820655596,42.84595043,81.688,81.66,4.37877224]
[1770820655903,19.30191106,81.71,81.671,4.37877224]
[1770820656106,19.30191106,81.7,81.671,4.37877224]
[1770820656402,48.94891803,81.718,81.643,42.66]
[1770820656403,19.30191106,81.75,81.691,4.3222927]
[1770820656605,12.23175715,81.755,81.72,19.30191106]
[1770820656801,19.30191106,81.75,81.713,4.3222927]
[1770820657198,12.23175715,81.755,81.72,19.30191106]
[1770820657400,12.23175715,81.755,81.713,4.3222927]
[1770820657609,4.44465709,81.729,81.651,30.61807015]
[1770820657815,19.30191106,81.71,81.676,4.3222927]
[1770820658020,19.30191106,81.72,81.681,4.3222927]
[1770820658197,19.30191106,81.72,81.647,48.99118415]
[1770820658198,4.44465709,81.715,81.667,4.3222927]
[1770820658402,19.30191106,81.7,81.661,4.3222927]
[1770820658597,12.23855389,81.709,81.681,4.3222927]
[1770820659118,19.30191106,81.71,81.681,4.3222927]
[1770820659119,12.23767778,81.715,81.681,4.3222927]
[1770820659714,12.23767778,81.715,81.69,19.30191106]
[1770820659912,12.23767778,81.715,81.681,4.3222927]
[1770820659913,19.30191106,81.71,81.681,4.3222927]
[1770820660118,19.30191106,81.71,81.67,19.30191106]
[1770820660315,19.30191106,81.7,81.667,4.3222927]
[1770820660623,12.23767778,81.715,81.611,4.3222927]
[1770820660624,4.44465709,81.689,81.611,4.3222927]
[1770820660917,4.44465709,81.689,81.5,19.30191106]
[1770820660918,12.24005189,81.699,81.661,4.3222927]
[1770820661104,12.24005189,81.699,81.627,49.00326777]
[1770820661105,12.24005189,81.699,81.664,4.3222927]
[1770820661294,12.24005189,81.699,81.67,19.30191106]
[1770820661493,12.24005189,81.699,81.664,4.3222927]
[1770820661703,4.44465709,81.69,81.645,4.3222927]
[1770820661911,19.30191106,81.69,81.651,4.3222927]
[1770820662111,4.44465709,81.75,81.681,4.3222927]
[1770820662317,19.30191106,81.73,81.69,19.30191106]
[1770820662710,19.30191106,81.72,81.681,4.3222927]
[1770820662910,12.23555898,81.729,81.67,12.3460498]
[1770820662911,12.3460498,81.71,81.67,12.3460498]
[1770820663098,16.79070689,81.7,81.654,4.3222927]
[1770820663414,12.3460498,81.69,81.661,4.3222927]
[1770820663606,12.3460498,81.7,81.661,4.3222927]
[1770820664297,12.3460498,81.67,81.631,4.3222927]
[1770820664496,12.3460498,81.66,81.632,12.25006623]
[1770820664696,12.24604758,81.659,81.623,4.3222927]
[1770820665298,12.3460498,81.64,81.61,4.3222927]
[1770820665616,12.3460498,81.65,81.612,12.2530131]
[1770820666093,12.3460498,81.65,81.611,12.25320561]
[1770820666297,4.44465709,81.629,81.582,4.3222927]
[1770820666608,12.3460498,81.62,81.583,12.25745559]
[1770820666924,50.96,81.643,81.57,19.30466412]
[1770820666925,19.30466412,81.61,81.57,19.30466412]
[1770820667213,19.30466412,81.6,81.569,46.8622927]
[1770820667421,42.88217203,81.619,81.58,19.30466412]
[1770820667618,4.44465709,81.63,81.569,42.54]
[1770820667619,12.25123465,81.625,81.591,4.3222927]
[1770820667820,19.30466412,81.61,81.571,4.3222927]
[1770820668000,19.30466412,81.62,81.59,19.30466412]
[1770820668200,19.30466412,81.63,81.591,4.3222927]
[1770820668622,12.250098,81.632,81.583,12.25745559]
[1770820668623,19.30466412,81.61,81.583,12.25745559]
[1770820668807,19.30466412,81.62,81.58,19.30466412]
[1770820669003,19.30466412,81.61,81.579,4.3222927]
[1770820669200,19.30466412,81.61,81.515,49.07067225]
[1770820669201,19.30466412,81.6,81.566,4.3222927]
[1770820669406,19.30466412,81.6,81.568,4.3222927]
[1770820669610,19.30466412,81.6,81.561,4.3222927]
[1770820669831,42.88082815,81.622,81.578,12.25820686]
[1770820669832,19.30466412,81.61,81.578,12.25820686]
[1770820670140,19.30466412,81.59,81.555,4.3222927]
[1770820670305,19.30466412,81.59,81.526,49.06366935]
[1770820670306,19.30466412,81.62,81.581,4.3222927]
[1770820670507,19.30466412,81.59,81.551,4.03775925]
[1770820670734,12.25655419,81.589,81.555,12.26164304]
[1770820670914,12.25655419,81.589,81.553,4.03775925]
[1770820671110,12.25276732,81.615,81.571,4.03775925]
[1770820671315,19.30466412,81.61,81.571,4.03775925]
[1770820671529,19.30466412,81.64,81.601,4.03775925]
[1770820671737,19.30466412,81.65,81.602,4.03775925]
[1770820671910,19.30466412,81.65,81.611,4.03775925]
[1770820672617,19.30466412,81.67,81.631,4.03775925]
[1770820672833,12.24454811,81.669,81.633,4.03775925]
[1770820673433,19.30466412,81.67,81.633,4.03775925]
[1770820673639,19.30466412,81.67,81.633,46.59775925]
[1770820673832,19.30466412,81.66,81.62,19.30466412]
[1770820674014,42.8518049,81.677,81.565,49.04052056]
[1770820674015,4.29916923,81.649,81.607,4.03775925]
[1770820674332,19.30466412,81.64,81.605,12.25408745]
[1770820674540,0.14216157,81.649,81.61,19.30466412]
[1770820674731,19.30466412,81.62,81.591,4.03775925]
[1770820674938,19.30466412,81.63,81.592,12.25610353]
[1770820675631,4.15700766,81.665,81.611,4.03775925]
[1770820675823,19.30466412,81.62,81.583,4.03775925]
[1770820676026,19.30466412,81.61,81.589,42.56]
[1770820676227,19.30466412,81.62,81.589,42.56]
[1770820676415,19.30466412,81.6,81.575,4.03775925]
[1770820676616,19.30466412,81.6,81.573,42.54]
[1770820676816,2.45562467,81.621,81.573,42.54]
[1770820677017,19.30466412,81.6,81.573,42.54]
[1770820677233,30.63067411,81.618,81.55,19.30466412]
[1770820677234,19.30466412,81.59,81.55,19.30466412]
[1770820677415,19.30466412,81.62,81.581,4.03775925]
[1770820677617,19.30466412,81.61,81.582,42.56]
[1770820677815,19.30466412,81.62,81.582,42.56]
[1770820678017,45.33681561,81.621,81.582,42.56]
[1770820678018,2.45562467,81.621,81.59,19.30466412]
[1770820678235,48.96858808,81.686,81.574,73.55284771]
[1770820678236,12.24259934,81.682,81.621,4.03775925]
[1770820678437,19.30466412,81.67,81.631,4.03775925]
[1770820678733,19.30466412,81.68,81.631,42.56]
[1770820679042,19.30466412,81.68,81.641,4.03775925]
[1770820679248,19.30466412,81.67,81.641,4.03775925]
[1770820679423,12.24283774,81.681,81.65,19.30466412]
[1770820679610,12.24213182,81.686,81.651,4.03775925]
[1770820679810,12.24213182,81.686,81.652,42.56]
[1770820680115,12.24155026,81.689,81.653,4.03775925]
[1770820680315,19.30466412,81.68,81.647,4.03775925]
[1770820680529,19.30466412,81.7,81.66,19.30466412]
[1770820680728,19.30466412,81.7,81.661,4.03775925]
[1770820680929,19.30466412,81.67,81.634,4.03775925]
[1770820681123,19.30466412,81.67,81.589,49.02575565]
[1770820681124,19.30466412,81.66,81.63,42.56]
[1770820681317,19.30466412,81.69,81.641,4.03775925]
[1770820681514,19.30466412,81.67,81.626,4.03775925]
[1770820681743,19.30466412,81.66,81.639,42.56]
[1770820681923,19.30466412,81.65,81.611,4.03775925]
[1770820682120,19.30466412,81.65,81.617,12.25220177]
[1770820682321,19.30466412,81.65,81.611,4.03775925]
[1770820682523,19.30466412,81.64,81.607,42.56]
[1770820682721,19.30466412,81.63,81.581,4.03775925]
[1770820682922,3.1276881,81.616,81.564,4.03775925]
[1770820683135,19.30466412,81.59,81.564,4.03775925]
[1770820683640,19.30466412,81.58,81.545,4.03775925]
[1770820683830,3.09632481,81.586,81.539,42.56]
[1770820684140,19.30466412,81.58,81.547,4.03775925]
[1770820684632,19.30466412,81.6,81.561,4.03775925]
[1770820684833,30.63713091,81.601,81.549,4.03775925]
[1770820685016,31.55956608,81.6,81.561,4.03775925]
[1770820685216,19.30466412,81.61,81.571,4.03775925]
[1770820685423,19.30466412,81.62,81.581,4.03775925]
[1770820685621,31.55506225,81.63,81.581,4.03775925]
[1770820685821,19.30466412,81.61,81.579,42.58]
[1770820686018,19.30466412,81.62,81.581,4.03775925]
[1770820686240,31.55506225,81.63,81.591,4.03775925]
[1770820686443,31.55506225,81.63,81.548,190.07210474]
[1770820686444,0.14216157,81.599,81.548,42.91950752]
[1770820686747,0.14216157,81.599,81.547,12.26273231]
[1770820686748,19.30466412,81.57,81.547,12.26273231]
[1770820686923,12.25955939,81.569,81.537,4.03775925]
[1770820687124,19.30466412,81.56,81.537,4.03775925]
[1770820687336,19.30466412,81.56,81.523,4.03775925]
[1770820687718,19.30466412,81.56,81.53,12.26527531]
[1770820687924,19.30466412,81.56,81.536,12.26452119]
[1770820688144,19.30466412,81.56,81.513,42.56]
[1770820688145,19.30466412,81.55,81.513,42.56]
[1770820688441,19.30466412,81.54,81.511,12.26824896]
[1770820688624,19.30466412,81.54,81.505,12.26905548]
[1770820689020,19.30466412,81.53,81.498,4.03775925]
[1770820689218,19.30466412,81.53,81.501,4.03775925]
[1770820689442,12.26406995,81.539,81.501,4.03775925]
[1770820689930,19.30466412,81.53,81.501,4.03775925]
[1770820690327,12.26406995,81.539,81.501,4.03775925]
[1770820690527,19.30466412,81.51,81.474,4.03775925]
[1770820690840,19.30466412,81.5,81.474,4.03775925]
[1770820691139,19.30466412,81.51,81.475,16.31146284]
[1770820691634,19.30466412,81.5,81.465,42.58]
[1770820691837,19.30466412,81.5,81.466,4.03775925]
[1770820692030,19.30466412,81.48,81.46,0.1]
[1770820692229,19.30466412,81.49,81.461,4.03775925]
[1770820692435,19.30466412,81.49,81.46,0.1]
[1770820692635,19.30466412,81.47,81.46,0.1]
[1770820692937,19.30466412,81.47,81.434,4.03775925]
[1770820693142,19.30466412,81.48,81.441,4.03775925]
[1770820693341,12.27310104,81.479,81.441,4.03775925]
[1770820693749,19.30466412,81.45,81.412,4.03775925]
[1770820693933,19.30466412,81.45,81.417,16.32005922]
[1770820694132,42.95585365,81.479,81.435,12.2797323]
[1770820694340,19.30466412,81.45,81.43,12.28041745]
[1770820694648,19.30466412,81.46,81.421,4.03775925]
[1770820694831,2.67421715,81.472,81.412,42.62]
[1770820694832,19.30466412,81.45,81.422,4.03775925]
[1770820695032,12.27762157,81.449,81.42,12.28196872]
[1770820695250,12.27762157,81.449,81.412,42.62]
[1770820695251,12.27762157,81.449,81.414,12.28280541]
[1770820695432,12.27762157,81.449,81.412,42.62]
[1770820695433,19.30466412,81.44,81.412,42.62]
[1770820695633,19.30466412,81.44,81.417,12.28236929]
[1770820695952,19.30466412,81.45,81.421,12.28184375]
[1770820696125,49.06869635,81.519,81.431,4.03775925]
[1770820696126,19.30466412,81.47,81.431,4.03775925]
[1770820696326,19.30466412,81.44,81.406,12.28401704]
[1770820696541,19.30466412,81.42,81.39,4.13775925]
[1770820696741,19.30466412,81.43,81.391,4.03775925]
[1770820696935,19.30466412,81.43,81.392,12.28614583]
[1770820697135,2.61992409,81.419,81.38,19.30466412]
[1770820697351,19.30466412,81.39,81.341,4.03775925]
[1770820697547,50.52,81.418,81.341,4.03775925]
[1770820697548,19.30466412,81.38,81.341,4.03775925]
[1770820697738,19.30466412,81.37,81.329,42.66]
[1770820698054,19.30466412,81.37,81.072,103.9]
[1770820698055,19.30466412,81.34,81.297,4.03775925]
[1770820698255,19.30466412,81.35,81.312,4.03775925]
[1770820698554,50.5,81.384,81.331,4.03775925]
[1770820698732,19.30466412,81.37,81.331,4.03775925]
[1770820698927,1.10553879,81.383,81.331,4.03775925]
[1770820699127,12.29032045,81.365,81.331,4.03775925]
[1770820699347,12.28646107,81.391,81.34,19.30466412]
[1770820699573,49.12956775,81.418,81.332,47.07125159]
[1770820699574,19.30466412,81.4,81.36,19.30466412]
[1770820699733,19.30466412,81.41,81.356,42.66]
[1770820699936,12.2816929,81.422,81.357,42.66]
[1770820699937,19.30466412,81.39,81.357,42.66]
[1770820700245,42.98592517,81.422,81.36,19.30466412]
[1770820700555,19.30466412,81.39,81.35,19.30466412]
[1770820700751,12.2816929,81.422,81.37,19.30466412]
[1770820700939,19.30466412,81.42,81.38,19.30466412]
[1770820701143,1.0298513,81.451,81.372,3.63985027]
[1770820701339,19.30466412,81.44,81.401,3.63985027]
[1770820701763,19.30466412,81.45,81.41,19.30466412]
[1770820702061,19.30466412,81.47,81.431,3.63985027]
[1770820702459,19.30466412,81.46,81.418,3.63985027]
[1770820702640,19.30466412,81.45,81.419,42.68]
[1770820702950,19.30466412,81.45,81.401,3.63985027]
[1770820703148,19.30466412,81.44,81.403,3.63985027]
[1770820703357,0.97555319,81.46,81.402,12.28471044]
[1770820703358,19.30466412,81.46,81.411,3.63985027]
[1770820703659,12.27415553,81.472,81.431,3.63985027]
[1770820703854,0.94624743,81.487,81.441,3.63985027]
[1770820703855,31.57763799,81.48,81.441,3.63985027]
[1770820704158,19.30466412,81.47,81.427,3.63985027]
[1770820704355,19.30466412,81.47,81.43,19.30466412]
[1770820704549,19.30466412,81.45,81.418,3.63985027]
[1770820705251,19.30466412,81.44,81.41,12.28346527]
[1770820705456,12.27762157,81.449,81.405,3.63985027]
[1770820705457,19.30466412,81.43,81.405,15.92405267]
[1770820705763,19.30466412,81.43,81.405,12.2842024]
[1770820705938,0.88864185,81.419,81.379,12.28808132]
[1770820706267,19.30466412,81.42,81.372,3.63985027]
[1770820706443,19.30466412,81.43,81.391,3.5852743]
[1770820706650,19.30466412,81.41,81.377,3.5852743]
[1770820707165,0.83235199,81.492,81.403,3.5852743]
[1770820707342,49.07235037,81.513,81.419,3.5852743]
[1770820707343,0.83235199,81.474,81.419,3.5852743]
[1770820707548,19.30466412,81.45,81.404,46.2652743]
[1770820707750,19.30466412,81.47,81.421,3.5852743]
[1770820707963,19.30466412,81.46,81.421,3.5852743]
[1770820708663,19.30466412,81.47,81.43,19.30466412]
[1770820708865,19.30466412,81.48,81.441,3.5852743]
[1770820709266,19.30466412,81.48,81.451,12.2773201]
[1770820709469,19.30466412,81.47,81.431,3.5852743]
[1770820709762,0.7503186,81.482,81.431,3.5852743]
[1770820709937,19.30466412,81.46,81.434,12.27987505]
[1770820710140,19.30466412,81.46,81.429,12.28052209]
[1770820710339,0.7503186,81.482,81.417,3.5852743]
[1770820710340,19.30466412,81.45,81.417,3.5852743]
[1770820710556,19.30466412,81.45,81.413,12.28305061]
[1770820710843,19.30466412,81.44,81.413,12.28305061]
[1770820711445,19.30466412,81.43,81.356,49.16626702]
[1770820711645,19.30466412,81.4,81.371,3.5852743]
[1770820712051,19.30466412,81.39,81.359,43.01921114]
[1770820712465,19.30466412,81.39,81.359,12.29120318]
[1770820712648,19.30466412,81.37,81.343,3.5852743]
[1770820712958,19.30466412,81.37,81.3,49.19999687]
[1770820712959,19.30466412,81.36,81.33,3.5852743]
[1770820713161,19.30466412,81.36,81.333,12.29499608]
[1770820713365,19.30466412,81.37,81.331,3.5852743]
[1770820713548,31.59420572,81.37,81.331,3.5852743]
[1770820713859,0.645271,81.408,81.331,3.5852743]
[1770820714072,30.70838093,81.411,81.361,3.5852743]
[1770820714073,19.30466412,81.41,81.361,3.5852743]
[1770820714268,0.645271,81.442,81.381,3.5852743]
[1770820714587,19.30466412,81.41,81.383,3.5852743]
[1770820714765,19.30466412,81.42,81.383,3.5852743]
[1770820714973,19.3980615,81.41,81.383,3.5852743]
[1770820715139,19.3980615,81.42,81.383,3.5852743]
[1770820715342,0.61975885,81.428,81.375,42.72]
[1770820715343,19.3980615,81.41,81.375,42.72]
[1770820715562,19.3980615,81.41,81.382,12.2876789]
[1770820715880,19.3980615,81.4,81.369,3.5852743]
[1770820716048,19.3980615,81.39,81.362,12.29067457]
[1770820716247,42.98750905,81.419,81.338,12.29429854]
[1770820716248,19.3980615,81.37,81.338,12.29429854]
[1770820716563,19.3980615,81.38,81.341,3.5852743]
[1770820716770,19.3980615,81.39,81.341,3.5852743]
[1770820716944,19.3980615,81.37,81.331,3.5852743]
[1770820717347,12.28969263,81.369,81.333,3.5852743]
[1770820717641,19.3980615,81.37,81.333,3.5852743]
[1770820717859,49.12538728,81.425,81.332,43.03349234]
[1770820717860,19.3980615,81.39,81.35,19.3980615]
[1770820718067,19.3980615,81.38,81.351,3.5852743]
[1770820718267,19.3980615,81.36,81.337,3.5852743]
[1770820718471,0.54496717,81.381,81.326,3.5852743]
[1770820718650,19.3980615,81.36,81.326,15.88139966]
[1770820718858,19.3980615,81.35,81.32,42.7]
[1770820719080,19.3980615,81.36,81.333,3.5852743]
[1770820719369,0.52060711,81.382,81.32,92.84074926]
[1770820719370,12.2927141,81.349,81.32,58.58235588]
[1770820719576,19.3980615,81.36,81.321,3.5852743]
[1770820719880,19.3980615,81.37,81.33,19.3980615]
[1770820720074,19.3980615,81.37,81.331,3.5852743]
[1770820720366,19.3980615,81.38,81.341,3.5852743]
[1770820720551,19.3980615,81.39,81.351,3.5852743]
[1770820720746,19.3980615,81.38,81.351,3.5852743]
[1770820720976,0.47272317,81.394,81.331,3.5852743]
[1770820721152,19.3980615,81.37,81.321,3.5852743]
[1770820721478,31.68774822,81.37,81.323,3.5852743]
[1770820721645,19.3980615,81.38,81.331,3.5852743]
[1770820721970,19.3980615,81.36,81.331,3.5852743]
[1770820722683,19.3980615,81.36,81.31,30.99690794]
[1770820722684,19.3980615,81.34,81.31,0.2504715]
[1770820722973,19.3980615,81.32,81.31,0.2504715]
[1770820723268,19.3980615,81.33,81.31,0.2504715]
[1770820723968,19.3980615,81.32,81.31,0.2504715]
[1770820724159,19.3980615,81.32,81.291,3.5852743]
[1770820724362,19.3980615,81.32,81.29,12.30162455]
[1770820724667,43.03507972,81.329,81.287,12.30208249]
[1770820724668,19.3980615,81.31,81.287,12.30208249]
[1770820724858,19.3980615,81.32,81.283,3.5852743]
[1770820725171,19.3980615,81.33,81.298,3.5852743]
[1770820725349,43.02502827,81.348,81.298,3.5852743]
[1770820725671,12.2942254,81.339,81.305,3.5852743]
[1770820725849,19.3980615,81.33,81.305,3.5852743]
[1770820726053,19.3980615,81.32,81.281,30.75725806]
[1770820726366,19.3980615,81.3,81.278,3.5852743]
[1770820726572,19.3980615,81.3,81.277,12.30360372]
[1770820726765,50.12506253,81.323,81.277,12.30360372]
[1770820726766,19.3980615,81.31,81.277,12.30360372]
[1770820727082,43.0297889,81.339,81.278,3.5852743]
[1770820727251,19.3980615,81.31,81.277,12.30360372]
[1770820727455,19.3980615,81.29,81.27,0.1]
[1770820727658,19.3980615,81.3,81.27,0.1]
[1770820727970,49.18200614,81.331,81.27,0.1]
[1770820727971,0.06310802,81.289,81.27,0.03689195]
[1770820728172,30.74279693,81.32,81.239,3.5852743]
[1770820728173,19.3980615,81.28,81.239,3.5852743]
[1770820728369,19.3980615,81.27,81.239,3.5852743]
[1770820728573,50.02,81.292,81.24,43.18218757]
[1770820728870,50.02,81.292,81.241,3.5852743]
[1770820728871,19.3980615,81.26,81.241,3.5852743]
[1770820729074,19.3980615,81.26,81.24,0.1]
[1770820729274,19.3980615,81.25,81.24,0.1]
[1770820729594,19.3980615,81.26,81.24,0.1]
[1770820729954,19.3980615,81.25,81.225,3.5852743]
[1770820730261,19.3980615,81.25,81.224,12.31163202]
[1770820730262,19.3980615,81.29,81.241,3.5852743]
[1770820730570,19.3980615,81.29,81.226,42.66]
[1770820730571,19.3980615,81.3,81.261,3.34682773]
[1770820730772,19.3980615,81.31,81.261,3.34682773]
[1770820730978,19.3980615,81.3,81.271,3.34682773]
[1770820731175,19.3980615,81.32,81.28,19.3980615]
[1770820731366,19.3980615,81.32,81.281,3.34682773]
[1770820731678,19.3980615,81.3,81.281,3.34682773]
[1770820731866,19.3980615,81.3,81.282,12.30284687]
[1770820732073,19.3980615,81.31,81.268,3.34682773]
[1770820732274,12.29813998,81.314,81.268,3.34682773]
[1770820732275,19.3980615,81.3,81.272,12.30430535]
[1770820732460,19.3980615,81.3,81.27,12.30451385]
[1770820732774,19.3980615,81.3,81.25,19.3980615]
[1770820732775,19.3980615,81.33,81.291,3.34682773]
[1770820733472,12.29135426,81.358,81.311,3.34682773]
[1770820733674,19.3980615,81.36,81.311,3.34682773]
[1770820733872,19.3980615,81.39,81.341,3.34682773]
[1770820734070,19.3980615,81.36,81.313,3.34682773]
[1770820734260,19.3980615,81.36,81.32,19.3980615]
[1770820734470,19.3980615,81.36,81.312,43.04407713]
[1770820734471,19.3980615,81.39,81.351,3.34682773]
[1770820734657,19.3980615,81.37,81.351,3.34682773]
[1770820735057,19.3980615,81.36,81.332,3.34682773]
[1770820735276,19.3980615,81.36,81.312,43.04407713]
[1770820735277,19.3980615,81.35,81.318,3.34682773]
[1770820735470,19.3980615,81.36,81.318,3.34682773]
[1770820735796,19.3980615,81.37,81.331,3.34682773]
[1770820735960,49.84,81.399,81.331,3.34682773]
[1770820736156,19.3980615,81.39,81.351,3.34682773]
[1770820736694,49.11985171,81.434,81.347,42.6]
[1770820736695,19.3980615,81.41,81.371,3.34682773]
[1770820736975,19.3980615,81.4,81.381,3.34682773]
[1770820737177,19.3980615,81.4,81.368,3.34682773]
[1770820737384,31.68008651,81.42,81.381,3.34682773]
[1770820737779,49.10068305,81.466,81.391,3.34682773]
[1770820737780,19.3980615,81.43,81.391,3.34682773]
[1770820738079,19.3980615,81.4,81.376,3.34682773]
[1770820738284,19.3980615,81.42,81.381,3.34682773]
[1770820738483,19.3980615,81.41,81.381,3.34682773]
[1770820738954,19.3980615,81.39,81.361,3.34682773]
[1770820739154,19.3980615,81.4,81.362,3.34682773]
[1770820739379,19.3980615,81.41,81.371,3.34682773]
[1770820739885,49.74,81.429,81.391,3.34682773]
[1770820740086,19.3980615,81.44,81.391,3.34682773]
[1770820740258,19.3980615,81.43,81.391,3.34682773]
[1770820740465,19.3980615,81.42,81.391,3.34682773]
[1770820740656,19.3980615,81.4,81.379,3.34682773]
[1770820740977,19.3980615,81.4,81.36,19.3980615]
[1770820740978,49.7,81.43,81.36,3.34682773]
[1770820741176,19.3980615,81.39,81.361,3.34682773]
[1770820741380,19.3980615,81.39,81.356,15.6384214]
[1770820741673,19.3980615,81.37,81.342,3.34682773]
[1770820741880,19.3980615,81.37,81.343,12.29362084]
[1770820742086,19.3980615,81.36,81.332,42.56]
[1770820742280,19.3980615,81.34,81.317,12.29755155]
[1770820742466,19.3980615,81.36,81.321,3.34682773]
[1770820742787,19.3980615,81.35,81.321,3.34682773]
[1770820743167,19.3980615,81.33,81.301,3.34682773]
[1770820743480,19.3980615,81.34,81.317,12.29755155]
[1770820743660,19.3980615,81.37,81.317,3.34682773]
[1770820743863,141.28284824,81.397,81.312,3.34682773]
[1770820743864,12.2942254,81.339,81.312,3.34682773]
[1770820744080,19.3980615,81.34,81.313,12.2981565]
[1770820744275,31.69217724,81.34,81.313,12.2981565]
[1770820744472,19.3980615,81.34,81.313,12.2981565]
[1770820744658,19.3980615,81.34,81.314,3.34682773]
[1770820744870,19.3980615,81.36,81.321,3.34682773]
[1770820745091,19.3980615,81.37,81.331,3.34682773]
[1770820745405,19.3980615,81.36,81.331,3.34682773]
[1770820745569,12.28803145,81.38,81.331,3.34682773]
[1770820745901,30.71246405,81.401,81.343,3.34682773]
[1770820746062,49.10641142,81.456,81.342,43.0282019]
[1770820746063,147.33688578,81.446,81.371,3.34682773]
[1770820746264,19.3980615,81.39,81.371,3.34682773]
[1770820746503,19.3980615,81.38,81.335,3.34682773]
[1770820746682,19.3980615,81.36,81.335,3.34682773]
[1770820746876,19.3980615,81.35,81.321,45.96682773]
[1770820747078,19.3980615,81.36,81.326,3.34682773]
[1770820747381,19.3980615,81.36,81.321,42.62]
[1770820747382,19.3980615,81.38,81.343,3.34682773]
[1770820747579,19.3980615,81.39,81.351,3.34682773]
[1770820748082,19.3980615,81.36,81.337,3.34682773]
[1770820748310,19.3980615,81.35,81.323,12.29661087]
[1770820748463,19.3980615,81.35,81.321,45.96682773]
[1770820748464,19.3980615,81.35,81.321,42.62]
[1770820748666,30.71668161,81.389,81.324,12.29649304]
[1770820748968,19.3980615,81.39,81.341,3.34682773]
[1770820749277,42.999656,81.396,81.341,3.34682773]
[1770820749595,19.3980615,81.38,81.351,3.34682773]
[1770820750184,12.28818245,81.379,81.351,3.34682773]
[1770820750689,19.3980615,81.37,81.332,3.34682773]
[1770820750889,19.3980615,81.36,81.329,12.29570526]
[1770820751070,19.3980615,81.35,81.329,12.29573706]
[1770820751584,12.28818245,81.379,81.341,3.34682773]
[1770820751787,19.3980615,81.37,81.341,3.34682773]